fUSD/lending_fUSD_20260614
["ID","MTS","AMOUNT","RATE_DAILY","PERIOD"]
[425022647,1781435463000,-500.0,0.00028219,8]
[425022644,1781435463000,-500.0,0.00028219,8]
[425022649,1781435463000,-500.0,0.00028219,8]
[425022638,1781435463000,-1023.56,0.00028219,8]
[425022672,1781435463000,-500.0,0.00028219,8]
[425022682,1781435463000,-500.0,0.00028219,8]
[425022673,1781435463000,-500.0,0.00028219,8]
[425022700,1781435463000,-500.0,0.00028219,8]
[425022697,1781435463000,-500.0,0.00028219,8]
[425022698,1781435463000,-913.06,0.00028219,8]
[425022705,1781435463000,-1471.09,0.00028219,8]
[425022703,1781435463000,-691.93,0.00028219,8]
[425022704,1781435463000,-500.0,0.00028219,8]
[425022707,1781435463000,-500.0,0.00028219,8]
[425022706,1781435463000,-681.29,0.00028219,8]
[425022708,1781435463000,-559.98,0.00028219,8]
[425022701,1781435463000,-845.71,0.00028219,8]
[425022713,1781435463000,-2587.9,0.00028219,8]
[425022714,1781435463000,-1073.91,0.00028219,8]
[425022711,1781435463000,-516.16,0.00028219,8]
[425022716,1781435463000,-1015.69,0.00028219,8]
[425022709,1781435463000,-500.0,0.00028219,8]
[425022710,1781435463000,-500.0,0.00028219,8]
[425022674,1781435463000,-500.0,0.00028219,8]
[425022718,1781435463000,-1615.21,0.00028219,8]
[425022717,1781435463000,-500.0,0.00028219,8]
[425022719,1781435463000,-500.0,0.00028219,8]
[425022715,1781435463000,-500.0,0.00028219,8]
[425022699,1781435463000,-616.43893069,0.00028219,8]
[425022712,1781435463000,-500.0,0.00028219,8]
[425022695,1781435463000,-500.0,0.00028219,8]
[425022702,1781435463000,-645.65,0.00028219,8]
[425022679,1781435463000,-2115.09,0.00028219,8]
[425022676,1781435463000,-1659.48,0.00028219,8]
[425022677,1781435463000,-500.0,0.00028219,8]
[425022675,1781435463000,-500.0,0.00028219,8]
[425022680,1781435463000,-500.0,0.00028219,8]
[425022681,1781435463000,-1675.91,0.00028219,8]
[425022683,1781435463000,-585.03,0.00028219,8]
[425022691,1781435463000,-1059.93,0.00028219,8]
[425022689,1781435463000,-500.0,0.00028219,8]
[425022678,1781435463000,-500.0,0.00028219,8]
[425022684,1781435463000,-500.0,0.00028219,8]
[425022692,1781435463000,-1289.21,0.00028219,8]
[425022690,1781435463000,-589.15,0.00028219,8]
[425022688,1781435463000,-500.0,0.00028219,8]
[425022693,1781435463000,-500.0,0.00028219,8]
[425022694,1781435463000,-500.0,0.00028219,8]
[425022685,1781435463000,-1198.28,0.00028219,8]
[425022687,1781435463000,-1673.77,0.00028219,8]
[425022686,1781435463000,-500.0,0.00028219,8]
[425022696,1781435463000,-1080.75,0.00028219,8]
[425022741,1781435464000,-701.07,0.00028219,8]
[425022748,1781435464000,-500.0,0.00028219,8]
[425022743,1781435464000,-561.61,0.00028219,8]
[425022739,1781435464000,-909.15,0.00028219,8]
[425022744,1781435464000,-1755.57,0.00028219,8]
[425022745,1781435464000,-558.03,0.00028219,8]
[425022747,1781435464000,-500.0,0.00028219,8]
[425022752,1781435464000,-500.0,0.00028219,8]
[425022746,1781435464000,-500.0,0.00028219,8]
[425022750,1781435464000,-500.0,0.00028219,8]
[425022749,1781435464000,-2111.57,0.00028219,8]
[425022753,1781435464000,-500.0,0.00028219,8]
[425022758,1781435464000,-1427.35,0.00028219,8]
[425022754,1781435464000,-500.0,0.00028219,8]
[425022742,1781435464000,-517.2,0.00028219,8]
[425022751,1781435464000,-842.87,0.00028219,8]
[425022740,1781435464000,-620.51,0.00028219,8]
[425022729,1781435464000,-617.31,0.00028219,8]
[425022736,1781435464000,-1039.97,0.00028219,8]
[425022761,1781435464000,-500.0,0.00028219,8]
[425022722,1781435464000,-500.0,0.00028219,8]
[425022720,1781435464000,-500.0,0.00028219,8]
[425022724,1781435464000,-500.0,0.00028219,8]
[425022723,1781435464000,-440.32803944,0.00028219,8]
[425022725,1781435464000,-528.66,0.00028219,8]
[425022726,1781435464000,-500.0,0.00028219,8]
[425022738,1781435464000,-500.0,0.00028219,8]
[425022727,1781435464000,-500.0,0.00028219,8]
[425022728,1781435464000,-500.0,0.00028219,8]
[425022731,1781435464000,-1087.19,0.00028219,8]
[425022732,1781435464000,-500.0,0.00028219,8]
[425022734,1781435464000,-500.0,0.00028219,8]
[425022733,1781435464000,-583.88,0.00028219,8]
[425022735,1781435464000,-500.0,0.00028219,8]
[425022737,1781435464000,-2777.35,0.00028219,8]
[425022730,1781435464000,-600.36,0.00028219,8]
[425022757,1781435464000,-500.0,0.00028219,8]
[425022721,1781435464000,-614.1,0.00028219,8]
[425022755,1781435464000,-1064.21,0.00028219,8]
[425022781,1781435464000,-541.98,0.00028219,8]
[425022780,1781435464000,-1492.97,0.00028219,8]
[425022782,1781435464000,-500.0,0.00028219,8]
[425022784,1781435464000,-500.0,0.00028219,8]
[425022786,1781435464000,-500.0,0.00028219,8]
[425022785,1781435464000,-500.0,0.00028219,8]
[425022788,1781435464000,-500.0,0.00028219,8]
[425022779,1781435464000,-1889.86,0.00028219,8]
[425022787,1781435464000,-1063.21,0.00028219,8]
[425022789,1781435464000,-500.0,0.00028219,8]
[425022794,1781435464000,-500.0,0.00028219,8]
[425022795,1781435464000,-500.0,0.00028219,8]
[425022792,1781435464000,-1603.48,0.00028219,8]
[425022793,1781435464000,-813.15,0.00028219,8]
[425022791,1781435464000,-500.0,0.00028219,8]
[425022760,1781435464000,-542.97,0.00028219,8]
[425022790,1781435464000,-500.0,0.00028219,8]
[425022777,1781435464000,-500.0,0.00028219,8]
[425022783,1781435464000,-749.09,0.00028219,8]
[425022778,1781435464000,-1929.81,0.00028219,8]
[425022775,1781435464000,-622.55,0.00028219,8]
[425022756,1781435464000,-1422.21,0.00028219,8]
[425022759,1781435464000,-500.0,0.00028219,8]
[425022762,1781435464000,-500.0,0.00028219,8]
[425022763,1781435464000,-500.0,0.00028219,8]
[425022766,1781435464000,-187.69093961,0.00028219,8]
[425022768,1781435464000,-500.0,0.00028219,8]
[425022767,1781435464000,-500.0,0.00028219,8]
[425022770,1781435464000,-500.0,0.00028219,8]
[425022776,1781435464000,-1516.11,0.00028219,8]
[425022769,1781435464000,-321.18456303,0.00028219,8]
[425022764,1781435464000,-702.92,0.00028219,8]
[425022771,1781435464000,-500.0,0.00028219,8]
[425022772,1781435464000,-500.0,0.00028219,8]
[425022773,1781435464000,-500.0,0.00028219,8]
[425022774,1781435464000,-500.0,0.00028219,8]
[425022765,1781435464000,-779.47,0.00028219,8]
[425022826,1781435465000,-1112.24,0.00028219,8]
[425022824,1781435465000,-500.0,0.00028219,8]
[425022822,1781435465000,-500.0,0.00028219,8]
[425022818,1781435465000,-500.0,0.00028219,8]
[425022819,1781435465000,-500.0,0.00028219,8]
[425022820,1781435465000,-584.87,0.00028219,8]
[425022823,1781435465000,-510.01,0.00028219,8]
[425022821,1781435465000,-500.0,0.00028219,8]
[425022825,1781435465000,-500.0,0.00028219,8]
[425022835,1781435465000,-500.0,0.00028219,8]
[425022829,1781435465000,-500.0,0.00028219,8]
[425022827,1781435465000,-599.38,0.00028219,8]
[425022828,1781435465000,-1267.91,0.00028219,8]
[425022830,1781435465000,-574.78,0.00028219,8]
[425022833,1781435465000,-500.0,0.00028219,8]
[425022837,1781435465000,-602.57601726,0.00028219,8]
[425022834,1781435465000,-500.0,0.00028219,8]
[425022817,1781435465000,-970.52,0.00028219,8]
[425022831,1781435465000,-1025.96,0.00028219,8]
[425022816,1781435465000,-678.81,0.00028219,8]
[425022798,1781435465000,-500.0,0.00028219,8]
[425022814,1781435465000,-500.0,0.00028219,8]
[425022796,1781435465000,-1879.34,0.00028219,8]
[425022836,1781435465000,-989.38,0.00028219,8]
[425022797,1781435465000,-500.0,0.00028219,8]
[425022799,1781435465000,-500.0,0.00028219,8]
[425022804,1781435465000,-2702.99,0.00028219,8]
[425022802,1781435465000,-730.92,0.00028219,8]
[425022801,1781435465000,-500.0,0.00028219,8]
[425022800,1781435465000,-500.0,0.00028219,8]
[425022815,1781435465000,-500.0,0.00028219,8]
[425022803,1781435465000,-500.0,0.00028219,8]
[425022807,1781435465000,-500.0,0.00028219,8]
[425022806,1781435465000,-1057.13,0.00028219,8]
[425022808,1781435465000,-500.0,0.00028219,8]
[425022811,1781435465000,-500.0,0.00028219,8]
[425022812,1781435465000,-500.0,0.00028219,8]
[425022810,1781435465000,-500.0,0.00028219,8]
[425022813,1781435465000,-500.0,0.00028219,8]
[425022809,1781435465000,-1329.92,0.00028219,8]
[425022805,1781435465000,-1793.44,0.00028219,8]
[425022838,1781435465000,-1057.83,0.00028219,8]
[425022832,1781435465000,-500.0,0.00028219,8]
[425022840,1781435465000,-632.32,0.00028219,8]
[425022861,1781435465000,-1672.8,0.00028219,8]
[425022865,1781435465000,-1383.07,0.00028219,8]
[425022864,1781435465000,-1545.51,0.00028219,8]
[425022866,1781435465000,-1111.21,0.00028219,8]
[425022869,1781435465000,-1480.16,0.00028219,8]
[425022867,1781435465000,-646.22629285,0.00028219,8]
[425022872,1781435465000,-1731.92,0.00028219,8]
[425022873,1781435465000,-500.0,0.00028219,8]
[425022870,1781435465000,-500.0,0.00028219,8]
[425022871,1781435465000,-500.0,0.00028219,8]
[425022874,1781435465000,-500.0,0.00028219,8]
[425022875,1781435465000,-1870.29,0.00028219,8]
[425022876,1781435465000,-500.0,0.00028219,8]
[425022879,1781435465000,-2399.74,0.00028219,8]
[425022881,1781435465000,-500.0,0.00028219,8]
[425022880,1781435465000,-500.0,0.00028219,8]
[425022877,1781435465000,-745.76,0.00028219,8]
[425022839,1781435465000,-500.0,0.00028219,8]
[425022878,1781435465000,-2026.37,0.00028219,8]
[425022860,1781435465000,-500.0,0.00028219,8]
[425022859,1781435465000,-1237.19,0.00028219,8]
[425022868,1781435465000,-1822.51,0.00028219,8]
[425022862,1781435465000,-500.0,0.00028219,8]
[425022841,1781435465000,-540.12,0.00028219,8]
[425022843,1781435465000,-500.0,0.00028219,8]
[425022863,1781435465000,-500.0,0.00028219,8]
[425022848,1781435465000,-714.13,0.00028219,8]
[425022844,1781435465000,-765.46,0.00028219,8]
[425022846,1781435465000,-500.0,0.00028219,8]
[425022842,1781435465000,-1052.46,0.00028219,8]
[425022847,1781435465000,-500.0,0.00028219,8]
[425022849,1781435465000,-1285.45,0.00028219,8]
[425022845,1781435465000,-500.0,0.00028219,8]
[425022853,1781435465000,-1535.4,0.00028219,8]
[425022850,1781435465000,-500.0,0.00028219,8]
[425022852,1781435465000,-723.45,0.00028219,8]
[425022856,1781435465000,-601.2,0.00028219,8]
[425022857,1781435465000,-629.84,0.00028219,8]
[425022858,1781435465000,-919.65,0.00028219,8]
[425022854,1781435465000,-500.0,0.00028219,8]
[425022851,1781435465000,-777.97,0.00028219,8]
[425022855,1781435465000,-3262.01,0.00028219,8]
[425022916,1781435466000,-500.0,0.00028219,8]
[425022914,1781435466000,-500.0,0.00028219,8]
[425022913,1781435466000,-1563.27,0.00028219,8]
[425022903,1781435466000,-533.74,0.00028219,8]
[425022911,1781435466000,-500.0,0.00028219,8]
[425022908,1781435466000,-2930.4,0.00028219,8]
[425022909,1781435466000,-500.0,0.00028219,8]
[425022912,1781435466000,-671.49,0.00028219,8]
[425022910,1781435466000,-500.0,0.00028219,8]
[425022915,1781435466000,-1560.69,0.00028219,8]
[425022919,1781435466000,-500.0,0.00028219,8]
[425022925,1781435466000,-549.94,0.00028219,8]
[425022922,1781435466000,-1419.27,0.00028219,8]
[425022927,1781435466000,-1275.33,0.00028219,8]
[425022920,1781435466000,-500.0,0.00028219,8]
[425022924,1781435466000,-774.03,0.00028219,8]
[425022926,1781435466000,-500.0,0.00028219,8]
[425022923,1781435466000,-1322.89,0.00028219,8]
[425022921,1781435466000,-753.7,0.00028219,8]
[425022906,1781435466000,-500.0,0.00028219,8]
[425022918,1781435466000,-1714.43,0.00028219,8]
[425022907,1781435466000,-500.0,0.00028219,8]
[425022885,1781435466000,-500.0,0.00028219,8]
[425022905,1781435466000,-961.87,0.00028219,8]
[425022928,1781435466000,-1031.13,0.00028219,8]
[425022883,1781435466000,-855.82,0.00028219,8]
[425022882,1781435466000,-960.18,0.00028219,8]
[425022888,1781435466000,-500.0,0.00028219,8]
[425022890,1781435466000,-500.0,0.00028219,8]
[425022886,1781435466000,-500.0,0.00028219,8]
[425022892,1781435466000,-500.0,0.00028219,8]
[425022889,1781435466000,-500.0,0.00028219,8]
[425022884,1781435466000,-500.0,0.00028219,8]
[425022887,1781435466000,-878.41,0.00028219,8]
[425022891,1781435466000,-589.98,0.00028219,8]
[425022898,1781435466000,-500.0,0.00028219,8]
[425022895,1781435466000,-500.0,0.00028219,8]
[425022901,1781435466000,-500.0,0.00028219,8]
[425022899,1781435466000,-1258.82,0.00028219,8]
[425022900,1781435466000,-579.81,0.00028219,8]
[425022894,1781435466000,-1033.06,0.00028219,8]
[425022896,1781435466000,-804.14,0.00028219,8]
[425022893,1781435466000,-500.0,0.00028219,8]
[425022897,1781435466000,-500.0,0.00028219,8]
[425022904,1781435466000,-813.1,0.00028219,8]
[425022902,1781435466000,-500.0,0.00028219,8]
[425022929,1781435466000,-2415.9,0.00028219,8]
[425022917,1781435466000,-264.56205847,0.00028219,8]
[425022938,1781435466000,-500.0,0.00028219,8]
[425022959,1781435466000,-500.0,0.00028219,8]
[425022960,1781435466000,-500.0,0.00028219,8]
[425022958,1781435466000,-788.07,0.00028219,8]
[425022961,1781435466000,-500.0,0.00028219,8]
[425022971,1781435466000,-500.0,0.00028219,8]
[425022963,1781435466000,-500.0,0.00028219,8]
[425022962,1781435466000,-500.0,0.00028219,8]
[425022965,1781435466000,-500.0,0.00028219,8]
[425022964,1781435466000,-581.98,0.00028219,8]
[425022966,1781435466000,-500.0,0.00028219,8]
[425022967,1781435466000,-1159.37,0.00028219,8]
[425022969,1781435466000,-500.0,0.00028219,8]
[425022968,1781435466000,-824.8,0.00028219,8]
[425022970,1781435466000,-500.0,0.00028219,8]
[425022972,1781435466000,-500.0,0.00028219,8]
[425022974,1781435466000,-500.0,0.00028219,8]
[425022975,1781435466000,-3445.43,0.00028219,8]
[425022976,1781435466000,-500.0,0.00028219,8]
[425022973,1781435466000,-3181.72,0.00028219,8]
[425022978,1781435466000,-500.0,0.00028219,8]
[425022930,1781435466000,-500.0,0.00028219,8]
[425022952,1781435466000,-1929.52,0.00028219,8]
[425022956,1781435466000,-500.0,0.00028219,8]
[425022977,1781435466000,-500.0,0.00028219,8]
[425022954,1781435466000,-680.58,0.00028219,8]
[425022957,1781435466000,-500.0,0.00028219,8]
[425022936,1781435466000,-1509.36,0.00028219,8]
[425022933,1781435466000,-500.0,0.00028219,8]
[425022939,1781435466000,-658.32,0.00028219,8]
[425022932,1781435466000,-831.68,0.00028219,8]
[425022934,1781435466000,-834.16,0.00028219,8]
[425022935,1781435466000,-1007.33,0.00028219,8]
[425022931,1781435466000,-500.0,0.00028219,8]
[425022941,1781435466000,-500.0,0.00028219,8]
[425022943,1781435466000,-500.0,0.00028219,8]
[425022942,1781435466000,-2035.16,0.00028219,8]
[425022937,1781435466000,-520.85,0.00028219,8]
[425022944,1781435466000,-551.59493797,0.00028219,8]
[425022940,1781435466000,-659.7,0.00028219,8]
[425022951,1781435466000,-500.0,0.00028219,8]
[425022950,1781435466000,-777.82,0.00028219,8]
[425022948,1781435466000,-723.52,0.00028219,8]
[425022953,1781435466000,-500.0,0.00028219,8]
[425022949,1781435466000,-1428.44,0.00028219,8]
[425022947,1781435466000,-2679.21,0.00028219,8]
[425022946,1781435466000,-598.50200718,0.00028219,8]
[425022945,1781435466000,-649.0,0.00028219,8]
[425022955,1781435466000,-500.0,0.00028219,8]
[425023004,1781435467000,-500.0,0.00028219,8]
[425023010,1781435467000,-562.99,0.00028219,8]
[425023001,1781435467000,-669.87,0.00028219,8]
[425023006,1781435467000,-996.43,0.00028219,8]
[425023016,1781435467000,-1460.01,0.00028219,8]
[425023009,1781435467000,-575.74,0.00028219,8]
[425023005,1781435467000,-500.0,0.00028219,8]
[425023012,1781435467000,-500.0,0.00028219,8]
[425023011,1781435467000,-1237.94,0.00028219,8]
[425023014,1781435467000,-500.0,0.00028219,8]
[425023008,1781435467000,-500.0,0.00028219,8]
[425023007,1781435467000,-517.27047755,0.00028219,8]
[425023015,1781435467000,-643.03462595,0.00028219,8]
[425023018,1781435467000,-797.81,0.00028219,8]
[425023017,1781435467000,-752.7,0.00028219,8]
[425023019,1781435467000,-500.0,0.00028219,8]
[425023020,1781435467000,-500.0,0.00028219,8]
[425023003,1781435467000,-500.0,0.00028219,8]
[425023013,1781435467000,-1566.12,0.00028219,8]
[425022997,1781435467000,-500.0,0.00028219,8]
[425022989,1781435467000,-773.17,0.00028219,8]
[425023002,1781435467000,-1774.5,0.00028219,8]
[425023025,1781435467000,-500.0,0.00028219,8]
[425022982,1781435467000,-500.0,0.00028219,8]
[425022981,1781435467000,-500.0,0.00028219,8]
[425022979,1781435467000,-995.14,0.00028219,8]
[425022980,1781435467000,-800.3,0.00028219,8]
[425022983,1781435467000,-173.59755552,0.00028219,8]
[425022984,1781435467000,-626.28,0.00028219,8]
[425022985,1781435467000,-500.0,0.00028219,8]
[425022987,1781435467000,-500.0,0.00028219,8]
[425022999,1781435467000,-500.0,0.00028219,8]
[425022986,1781435467000,-2163.19,0.00028219,8]
[425022988,1781435467000,-500.0,0.00028219,8]
[425022993,1781435467000,-1329.08,0.00028219,8]
[425022992,1781435467000,-500.0,0.00028219,8]
[425022990,1781435467000,-500.0,0.00028219,8]
[425022995,1781435467000,-2610.35,0.00028219,8]
[425022994,1781435467000,-611.27,0.00028219,8]
[425022996,1781435467000,-1061.11,0.00028219,8]
[425022998,1781435467000,-500.0,0.00028219,8]
[425023000,1781435467000,-500.0,0.00028219,8]
[425022991,1781435467000,-599.34,0.00028219,8]
[425023021,1781435467000,-500.0,0.00028219,8]
[425023023,1781435467000,-1610.59,0.00028219,8]
[425023026,1781435467000,-1356.73,0.00028219,8]
[425023051,1781435467000,-500.0,0.00028219,8]
[425023050,1781435467000,-500.0,0.00028219,8]
[425023052,1781435467000,-545.16,0.00028219,8]
[425023053,1781435467000,-839.95758693,0.00028219,8]
[425023055,1781435467000,-604.56682326,0.00028219,8]
[425023061,1781435467000,-508.09,0.00028219,8]
[425023058,1781435467000,-570.04470282,0.00028219,8]
[425023054,1781435467000,-1532.31241307,0.00028219,8]
[425023056,1781435467000,-3430.6,0.00028219,8]
[425023062,1781435467000,-500.0,0.00028219,8]
[425023060,1781435467000,-840.44,0.00028219,8]
[425023057,1781435467000,-596.92,0.00028219,8]
[425023063,1781435467000,-500.0,0.00028219,8]
[425023066,1781435467000,-139.40720336,0.00028219,8]
[425023064,1781435467000,-508.61223451,0.00028219,8]
[425023067,1781435467000,-360.59279664,0.00028219,8]
[425023065,1781435467000,-1470.97,0.00028219,8]
[425023068,1781435467000,-562.8289432,0.00028219,8]
[425023022,1781435467000,-500.0,0.00028219,8]
[425023047,1781435467000,-645.33,0.00028219,8]
[425023045,1781435467000,-500.0,0.00028219,8]
[425023059,1781435467000,-500.0,0.00028219,8]
[425023049,1781435467000,-922.35,0.00028219,8]
[425023024,1781435467000,-500.0,0.00028219,8]
[425023046,1781435467000,-2119.45,0.00028219,8]
[425023027,1781435467000,-524.19,0.00028219,8]
[425023029,1781435467000,-620.19,0.00028219,8]
[425023033,1781435467000,-535.34,0.00028219,8]
[425023032,1781435467000,-500.0,0.00028219,8]
[425023028,1781435467000,-1378.62,0.00028219,8]
[425023031,1781435467000,-1252.66,0.00028219,8]
[425023037,1781435467000,-1312.02,0.00028219,8]
[425023034,1781435467000,-500.0,0.00028219,8]
[425023030,1781435467000,-1411.59,0.00028219,8]
[425023036,1781435467000,-816.74,0.00028219,8]
[425023038,1781435467000,-502.16,0.00028219,8]
[425023035,1781435467000,-500.0,0.00028219,8]
[425023039,1781435467000,-592.79,0.00028219,8]
[425023040,1781435467000,-1881.99,0.00028219,8]
[425023041,1781435467000,-500.0,0.00028219,8]
[425023044,1781435467000,-500.0,0.00028219,8]
[425023048,1781435467000,-500.0,0.00028219,8]
[425023043,1781435467000,-500.0,0.00028219,8]
[425023042,1781435467000,-500.0,0.00028219,8]
[425023098,1781435468000,-500.0,0.00028219,8]
[425023101,1781435468000,-504.92,0.00028219,8]
[425023105,1781435468000,-697.1,0.00028219,8]
[425023126,1781435468000,-663.4,0.00028219,8]
[425023106,1781435468000,-768.14,0.00028219,8]
[425023102,1781435468000,-500.0,0.00028219,8]
[425023097,1781435468000,-500.0,0.00028219,8]
[425023099,1781435468000,-500.0,0.00028219,8]
[425023108,1781435468000,-500.0,0.00028219,8]
[425023103,1781435468000,-500.0,0.00028219,8]
[425023107,1781435468000,-391.81568348,0.00028219,8]
[425023118,1781435468000,-500.0,0.00028219,8]
[425023115,1781435468000,-2302.95,0.00028219,8]
[425023114,1781435468000,-500.0,0.00028219,8]
[425023109,1781435468000,-1295.99,0.00028219,8]
[425023111,1781435468000,-851.46,0.00028219,8]
[425023112,1781435468000,-500.0,0.00028219,8]
[425023113,1781435468000,-290.76173924,0.00028219,8]
[425023116,1781435468000,-500.0,0.00028219,8]
[425023117,1781435468000,-5454.3,0.00028219,8]
[425023125,1781435468000,-525.89837362,0.00028219,8]
[425023124,1781435468000,-500.0,0.00028219,8]
[425023100,1781435468000,-869.29,0.00028219,8]
[425023110,1781435468000,-824.89,0.00028219,8]
[425023096,1781435468000,-1304.3,0.00028219,8]
[425023071,1781435468000,-500.0,0.00028219,8]
[425023095,1781435468000,-500.0,0.00028219,8]
[425023074,1781435468000,-1067.55,0.00028219,8]
[425023069,1781435468000,-427.60492972,0.00028219,8]
[425023073,1781435468000,-606.22774728,0.00028219,8]
[425023070,1781435468000,-710.8,0.00028219,8]
[425023072,1781435468000,-500.0,0.00028219,8]
[425023076,1781435468000,-500.0,0.00028219,8]
[425023077,1781435468000,-566.63,0.00028219,8]
[425023075,1781435468000,-500.0,0.00028219,8]
[425023079,1781435468000,-500.0,0.00028219,8]
[425023081,1781435468000,-1188.61,0.00028219,8]
[425023078,1781435468000,-1023.92,0.00028219,8]
[425023093,1781435468000,-500.0,0.00028219,8]
[425023082,1781435468000,-500.0,0.00028219,8]
[425023084,1781435468000,-724.35,0.00028219,8]
[425023083,1781435468000,-500.0,0.00028219,8]
[425023085,1781435468000,-500.0,0.00028219,8]
[425023086,1781435468000,-568.13,0.00028219,8]
[425023089,1781435468000,-500.0,0.00028219,8]
[425023090,1781435468000,-500.0,0.00028219,8]
[425023087,1781435468000,-1423.51,0.00028219,8]
[425023088,1781435468000,-528.07,0.00028219,8]
[425023092,1781435468000,-1591.01,0.00028219,8]
[425023094,1781435468000,-541.64,0.00028219,8]
[425023091,1781435468000,-500.0,0.00028219,8]
[425023080,1781435468000,-398.5924708,0.00028219,8]
[425023122,1781435468000,-867.36,0.00028219,8]
[425023104,1781435468000,-500.0,0.00028219,8]
[425023121,1781435468000,-648.05,0.00028219,8]
[425023153,1781435468000,-1387.47,0.00028219,8]
[425023151,1781435468000,-500.0,0.00028219,8]
[425023155,1781435468000,-9318.37,0.00028219,8]
[425023154,1781435468000,-500.0,0.00028219,8]
[425023158,1781435468000,-6854.6,0.00028219,8]
[425023159,1781435468000,-500.0,0.00028219,8]
[425023160,1781435468000,-500.0,0.00028219,8]
[425023161,1781435468000,-882.04,0.00028219,8]
[425023162,1781435468000,-500.0,0.00028219,8]
[425023163,1781435468000,-500.0,0.00028219,8]
[425023171,1781435468000,-500.0,0.00028219,8]
[425023156,1781435468000,-500.0,0.00028219,8]
[425023168,1781435468000,-509.28,0.00028219,8]
[425023164,1781435468000,-626.27,0.00028219,8]
[425023165,1781435468000,-620.22,0.00028219,8]
[425023169,1781435468000,-500.0,0.00028219,8]
[425023173,1781435468000,-500.0,0.00028219,8]
[425023170,1781435468000,-500.0,0.00028219,8]
[425023172,1781435468000,-544.01132387,0.00028219,8]
[425023175,1781435468000,-1091.01,0.00028219,8]
[425023174,1781435468000,-500.0,0.00028219,8]
[425023176,1781435468000,-500.0,0.00028219,8]
[425023177,1781435468000,-524.11,0.00028219,8]
[425023123,1781435468000,-1236.56,0.00028219,8]
[425023166,1781435468000,-633.46,0.00028219,8]
[425023157,1781435468000,-2657.03,0.00028219,8]
[425023167,1781435468000,-1056.98,0.00028219,8]
[425023150,1781435468000,-500.0,0.00028219,8]
[425023152,1781435468000,-500.0,0.00028219,8]
[425023127,1781435468000,-215.23283927,0.00028219,8]
[425023128,1781435468000,-500.0,0.00028219,8]
[425023120,1781435468000,-1526.17,0.00028219,8]
[425023130,1781435468000,-500.0,0.00028219,8]
[425023133,1781435468000,-2205.29,0.00028219,8]
[425023132,1781435468000,-500.0,0.00028219,8]
[425023129,1781435468000,-500.0,0.00028219,8]
[425023131,1781435468000,-2119.65,0.00028219,8]
[425023134,1781435468000,-660.0,0.00028219,8]
[425023136,1781435468000,-500.0,0.00028219,8]
[425023135,1781435468000,-500.0,0.00028219,8]
[425023139,1781435468000,-500.0,0.00028219,8]
[425023119,1781435468000,-500.0,0.00028219,8]
[425023147,1781435468000,-500.0,0.00028219,8]
[425023137,1781435468000,-1631.77,0.00028219,8]